fUSD/lending_fUSD_20240627
["ID","MTS","AMOUNT","RATE_DAILY","PERIOD"]
[330464544,1719450653716,-417.864477,0.00019274,2]
[330464545,1719450653726,-417.86448,0.00019274,2]
[330464546,1719450653736,-423.041201,0.00019274,2]
[330464547,1719450653745,-423.041196,0.00019274,2]
[330464548,1719450653755,-151.0,0.00019274,2]
[330464549,1719450653764,-438.2259284,0.00019274,2]
[330464550,1719450653774,-15533.6764544,0.00019274,2]
[330464551,1719450653784,-782.7823434,0.00019274,2]
[330464552,1719450653793,-280.762652,0.00019287,2]
[330464553,1719450653802,-280.762652,0.00019287,2]
[330464554,1719450653812,-151.0,0.00019287,2]
[330464555,1719450653822,-151.0,0.00019287,2]
[330464556,1719450653832,-151.0,0.00019287,2]
[330464557,1719450653842,-151.0,0.00019287,2]
[330464558,1719450653851,-228.917741,0.00019287,2]
[330464559,1719450653861,-228.917741,0.00019287,2]
[330464560,1719450653874,-310.785217,0.00019287,2]
[330464561,1719450653884,-310.785217,0.00019287,2]
[330464562,1719450653894,-601794.02071864,0.00019287,7]
[330464563,1719450653903,-114692.0,0.00019288,2]
[330464564,1719450653915,-151.0,0.00019288,2]
[330464565,1719450653924,-256.085642,0.00019288,2]
[330464566,1719450653934,-185.747511,0.00019288,2]
[330464567,1719450653945,-185.747511,0.00019288,2]
[330464568,1719450653955,-151.0,0.00019288,2]
[330464569,1719450653964,-151.0,0.00019288,2]
[330464570,1719450653974,-332.658122,0.00019288,2]
[330464571,1719450653983,-151.0,0.00019288,2]
[330464572,1719450653992,-151.0,0.00019288,2]
[330464573,1719450654002,-151.0,0.00019288,2]
[330464574,1719450654011,-151.0,0.00019288,2]
[330464575,1719450654021,-151.0,0.00019288,2]
[330464576,1719450654030,-280.762652,0.00019288,2]
[330464577,1719450654040,-280.762652,0.00019288,2]
[330464578,1719450654049,-151.0,0.00019288,2]
[330464579,1719450654059,-211.606019,0.00019288,2]
[330464580,1719450654069,-151.0,0.00019288,2]
[330464581,1719450654079,-151.0,0.00019288,2]
[330464582,1719450654088,-228.917741,0.00019288,2]
[330464583,1719450654098,-228.917741,0.00019288,2]
[330464584,1719450654107,-310.785217,0.00019288,2]
[330464585,1719450654210,-310.785217,0.00019288,2]
[330464586,1719450654220,-200.0,0.00019313,2]
[330464587,1719450654229,-181.6,0.00019339,2]
[330464588,1719450654239,-371.65444905,0.0001935,2]
[330464589,1719450654248,-266.16289,0.00019353,2]
[330464590,1719450654258,-185.747511,0.00019353,2]
[330464591,1719450654267,-185.747511,0.00019353,2]
[330464592,1719450654276,-151.0,0.00019353,2]
[330464593,1719450654285,-151.0,0.00019354,2]
[330464594,1719450654295,-151.0,0.00019354,2]
[330464595,1719450654305,-18150.73749775,0.00019354,2]
[330464596,1719450654316,-887.93932126,0.00019451,2]
[330464597,1719450654325,-165.023,0.00019466,2]
[330464598,1719450654335,-940.68953093,0.00019565,2]
[330464599,1719450654344,-1649.90375393,0.00019614,2]
[330464600,1719450654354,-8632.10648855,0.00019718,2]
[330464601,1719450654364,-500.0,0.00019863,2]
[330464602,1719450654373,-452.73383427,0.000199,2]
[330464603,1719450654383,-222.33123063,0.000199,2]
[330464604,1719450654393,-4012.9760543,0.000199,2]
[330464605,1719450654403,-840.0,0.00019948,2]
[330464606,1719450654412,-333.98,0.00019958,2]
[330464607,1719450654422,-155.0,0.00019964,2]
[330464608,1719450654432,-431.23451417,0.00019964,2]
[330464609,1719450654441,-305.22875309,0.0001999,2]
[330464610,1719450654450,-159.35905783,0.0001999,2]
[330464611,1719450654460,-300.0,0.00019997,2]
[330464612,1719450654470,-477.23298742,0.00019997,2]
[330464613,1719450654480,-513.82,0.0002,2]
[330464614,1719450654491,-294.02819958,0.0002,2]
[330464615,1719450654501,-187.96812151,0.0002,2]
[330464616,1719450654510,-866.64783494,0.0002,2]
[330464617,1719450654520,-509.0,0.0002,2]
[330464618,1719450654530,-292.7272966,0.0002,2]
[330464619,1719450654540,-3760.34506319,0.0002,2]
[330464620,1719450654549,-6653.0,0.0002,2]
[330464621,1719450654558,-8661.57695721,0.0002,2]
[330464622,1719450654568,-6025.64152776,0.0002,2]
[330464623,1719450654577,-1274.00198507,0.0002,2]
[330464624,1719450654587,-326.91214886,0.0002,2]
[330464625,1719450654596,-5000.0,0.0002,2]
[330464626,1719450654606,-505.0,0.0002,2]
[330464627,1719450654616,-257.0,0.0002,2]
[330464628,1719450654626,-7124.17330053,0.0002,2]
[330464629,1719450654636,-266.16289,0.0002,2]
[330464630,1719450654645,-185.747511,0.0002,2]
[330464631,1719450654655,-185.747511,0.0002,2]
[330464632,1719450654665,-151.0,0.0002,2]
[330464633,1719450654675,-332.658122,0.0002,2]
[330464634,1719450654685,-151.0,0.0002,2]
[330464635,1719450654695,-151.0,0.0002,2]
[330464636,1719450654703,-151.0,0.0002,2]
[330464637,1719450654713,-151.0,0.0002,2]
[330464638,1719450654723,-151.0,0.0002,2]
[330464639,1719450654733,-280.762652,0.0002,2]
[330464640,1719450654742,-280.762652,0.0002,2]
[330464641,1719450654752,-151.0,0.0002,2]
[330464642,1719450654762,-151.0,0.0002,2]
[330464643,1719450654771,-6638.42692474,0.0002,2]
[330464644,1719450654780,-151.0,0.0002,2]
[330464645,1719450654791,-228.917741,0.0002,2]
[330464646,1719450654800,-228.917743,0.0002,2]
[330464647,1719450654810,-310.785217,0.0002,2]
[330464648,1719450654821,-310.785218,0.0002,2]
[330464649,1719450654831,-151.67590983,0.0002,2]
[330464650,1719450654841,-151.0,0.000201,2]
[330464651,1719450654851,-760.07072608,0.000201,2]
[330464652,1719450654866,-20769.83878618,0.000201,2]
[330464653,1719450654875,-2016.76860931,0.000202,2]
[330464654,1719450654885,-151.0,0.00020445,2]
[330464655,1719450654894,-8632.10648855,0.00020445,2]
[330464656,1719450654904,-171.937194,0.0002053,2]
[330464657,1719450654915,-167.111418,0.0002053,2]
[330464658,1719450654924,-187.440255,0.0002053,2]
[330464659,1719450654934,-174.263907,0.0002053,2]
[330464660,1719450654946,-550.199022,0.0002053,2]
[330464661,1719450654956,-356.0,0.0002054,2]
[330464662,1719450654966,-26340.10825471,0.000207,2]
[330464663,1719450654975,-1649.90375393,0.00020757,2]
[330464664,1719450654984,-187.440255,0.00020787,2]
[330464665,1719450654995,-550.199022,0.00020787,2]
[330464666,1719450655004,-171.937194,0.00020873,2]
[330464667,1719450655014,-174.263907,0.00020873,2]
[330464668,1719450655023,-151.0,0.00020873,2]
[330464669,1719450655034,-151.0,0.00020873,2]
[330464670,1719450655043,-151.0,0.00020873,2]
[330464671,1719450655053,-151.0,0.00020873,2]
[330464672,1719450655063,-332.658122,0.000209,2]
[330464673,1719450655073,-151.0,0.000209,2]
[330464674,1719450655082,-332.658122,0.000209,2]
[330464675,1719450655092,-151.0,0.000209,2]
[330464676,1719450655102,-151.0,0.000209,2]
[330464677,1719450655111,-151.0,0.000209,2]
[330464678,1719450655121,-151.0,0.000209,2]
[330464679,1719450655130,-280.762652,0.000209,2]
[330464680,1719450655140,-280.762652,0.000209,2]
[330464681,1719450655149,-151.0,0.000209,2]
[330464682,1719450655159,-390625.0,0.000209,3]
[330464683,1719450655168,-177.40630072,0.000209,2]
[330464684,1719450655177,-509.0,0.00021,2]
[330464685,1719450655186,-4006.52500885,0.00021,2]
[330464686,1719450655196,-1250.0,0.00021,2]
[330464687,1719450655205,-760.07072608,0.00021,2]
[330464688,1719450655214,-20769.83878618,0.00021,2]
[330464689,1719450655223,-187.440255,0.00021044,2]
[330464690,1719450655233,-550.199022,0.00021044,2]
[330464691,1719450655242,-8632.10648855,0.00021173,2]
[330464692,1719450655252,-171.937194,0.00021215,2]
[330464693,1719450655261,-174.263907,0.00021215,2]
[330464694,1719450655271,-187.440255,0.000213,2]
[330464695,1719450655280,-550.199022,0.000213,2]
[330464696,1719450655289,-171.937194,0.00021557,2]
[330464697,1719450655299,-174.263907,0.00021557,2]
[330464698,1719450655308,-167.111418,0.00021557,2]
[330464699,1719450655319,-187.440255,0.00021557,2]
[330464700,1719450655327,-550.199022,0.00021557,2]
[330464701,1719450655336,-266.16289,0.00021557,2]
[330464702,1719450655346,-185.747511,0.00021557,2]
[330464703,1719450655355,-185.747511,0.00021557,2]
[330464704,1719450655366,-153.78,0.00021644,2]
[330464705,1719450655375,-428.15,0.00021644,2]
[330464706,1719450655386,-152.03,0.00021644,2]
[330464707,1719450655396,-160.89,0.00021644,2]
[330464708,1719450655406,-8693.0,0.000217,2]
[330464709,1719450655416,-3000.0,0.000218,5]
[330464710,1719450655426,-514.0,0.000218,2]
[330464711,1719450655436,-18102.44473135,0.00021842,2]
[330464712,1719450655446,-228.109757,0.00021842,2]
[330464713,1719450655455,-1422.4832231,0.00021865,2]
[330464714,1719450655464,-356.6812646,0.00021865,2]
[330464715,1719450655475,-12643.1847182,0.00021865,2]
[330464716,1719450655484,-637.1229497,0.00021865,2]
[330464717,1719450655494,-419563.03369567,0.0002188,2]
[330464718,1719450655504,-146635.80179557,0.0002188,2]
[330464719,1719450655514,-266.162888,0.0002188,2]
[330464720,1719450655524,-185.747511,0.0002188,2]
[330464721,1719450655533,-185.747505,0.0002188,2]
[330464722,1719450655543,-332.658122,0.0002188,2]
[330464723,1719450655553,-332.658122,0.0002188,2]
[330464724,1719450655564,-151.0,0.0002188,2]
[330464725,1719450655574,-267.383888,0.0002188,2]
[330464726,1719450655584,-332.658122,0.0002188,2]
[330464727,1719450655594,-332.658116,0.0002188,2]
[330464728,1719450655604,-280.762652,0.0002188,2]
[330464729,1719450655613,-280.762655,0.0002188,2]
[330464730,1719450655623,-151.0,0.0002188,2]
[330464731,1719450655633,-500.0,0.00021882,2]
[330464732,1719450655643,-500.0,0.00021882,2]
[330464733,1719450655652,-500.0,0.00021882,2]
[330464734,1719450655662,-500.0,0.00021891,2]
[330464735,1719450655672,-500.0,0.00021891,2]
[330464736,1719450655682,-500.0,0.00021891,2]
[330464737,1719450655692,-500.0,0.000219,2]
[330464738,1719450655702,-301.85040956,0.000219,2]
[330464739,1719450655712,-500.0,0.000219,2]
[330464740,1719450655721,-500.0,0.000219,2]
[330464741,1719450655731,-888.69762129,0.000219,2]
[330464742,1719450655740,-500.0,0.000219,2]
[330464743,1719450655749,-8632.10648855,0.000219,2]
[330464744,1719450655758,-760.07072608,0.000219,2]
[330464745,1719450655768,-451.8098,0.000219,2]
[330464746,1719450655777,-1649.90375393,0.000219,2]
[330464747,1719450655787,-510.5931,0.000219,2]
[330464748,1719450655796,-20769.83878618,0.000219,2]
[330464749,1719450655806,-452.73383427,0.000219,2]
[330464750,1719450655815,-1251.3063,0.000219,2]
[330464751,1719450655825,-222.33123063,0.000219,2]
[330464752,1719450655834,-2000.0,0.00021917,7]
[330464753,1719450655844,-2000.0,0.00021917,7]
[330464754,1719450655855,-2000.0,0.00021917,7]
[330464755,1719450655869,-2000.0,0.00021917,7]
[330464756,1719450655879,-2000.0,0.00021917,7]
[330464757,1719450655888,-2000.0,0.00021917,7]
[330464758,1719450655898,-2000.0,0.00021917,7]
[330464759,1719450655909,-725.55900003,0.00021917,7]
[330464760,1719450655918,-174.08,0.00021918,2]
[330464761,1719450655927,-320.0,0.00021918,2]
[330464762,1719450655937,-320.0,0.00021918,2]
[330464763,1719450655950,-320.0,0.00021918,2]
[330464764,1719450655960,-320.0,0.00021918,2]
[330464765,1719450655969,-320.0,0.00021918,2]
[330464766,1719450655979,-320.0,0.00021918,2]
[330464767,1719450655988,-320.0,0.00021918,2]
[330464768,1719450655998,-320.0,0.00021918,2]
[330464769,1719450656007,-320.0,0.00021918,2]
[330464770,1719450656017,-320.0,0.00021918,2]
[330464771,1719450656027,-320.0,0.00021918,2]
[330464772,1719450656036,-320.0,0.00021918,2]
[330464773,1719450656045,-320.0,0.00021918,2]
[330464774,1719450656055,-320.0,0.00021918,2]
[330464775,1719450656066,-320.0,0.00021918,2]
[330464776,1719450656077,-320.0,0.00021918,2]
[330464777,1719450656087,-320.0,0.00021918,2]
[330464778,1719450656098,-320.0,0.00021918,2]
[330464779,1719450656109,-320.0,0.00021918,2]
[330464780,1719450656118,-320.0,0.00021918,2]
[330464781,1719450656128,-1268.24501,0.00021918,2]
[330464782,1719450656138,-1268.24501,0.00021918,2]
[330464783,1719450656148,-1268.24501,0.00021918,2]
[330464784,1719450656158,-1268.24501,0.00021918,2]
[330464785,1719450656168,-1268.24501,0.00021918,2]
[330464786,1719450656177,-1268.24501,0.00021918,2]
[330464787,1719450656187,-1268.24501,0.00021918,2]
[330464788,1719450656196,-1268.24501,0.00021918,2]
[330464789,1719450656206,-1268.24501,0.00021918,2]
[330464790,1719450656216,-1268.24501,0.00021918,2]
[330464791,1719450656225,-1268.24501,0.00021918,2]
[330464792,1719450656234,-1268.24501,0.00021918,2]
[330464793,1719450656244,-1268.24501,0.00021918,2]
[330464794,1719450656254,-1268.24501,0.00021918,2]
[330464795,1719450656263,-1268.24501,0.00021918,2]
[330464796,1719450656272,-1268.24501,0.00021918,2]
[330464797,1719450656281,-1268.24501,0.00021918,2]
[330464798,1719450656291,-1268.24501,0.00021918,2]
[330464799,1719450656300,-1268.24501,0.00021918,2]
[330464800,1719450656309,-1268.245006,0.00021918,2]
[330464801,1719450656321,-1672.79,0.00021918,2]
[330464802,1719450656330,-151.0,0.00021918,2]
[330464803,1719450656339,-151.0,0.00021918,2]
[330464804,1719450656348,-151.0,0.00021918,2]
[330464805,1719450656359,-151.0,0.00021918,2]
[330464806,1719450656369,-151.0,0.00021918,2]
[330464807,1719450656379,-151.0,0.00021918,2]
[330464808,1719450656389,-151.0,0.00021918,2]
[330464809,1719450656399,-151.0,0.00021918,2]
[330464810,1719450656409,-151.0,0.00021918,2]
[330464811,1719450656418,-151.0,0.00021918,2]
[330464812,1719450656427,-151.0,0.00021918,2]
[330464813,1719450656438,-151.0,0.00021918,2]
[330464814,1719450656448,-151.0,0.00021918,2]
[330464815,1719450656458,-151.0,0.00021918,2]
[330464816,1719450656468,-151.0,0.00021918,2]
[330464817,1719450656478,-151.0,0.00021918,2]
[330464818,1719450656488,-151.0,0.00021918,2]
[330464819,1719450656497,-151.0,0.00021918,2]
[330464820,1719450656506,-151.0,0.00021918,2]
[330464821,1719450656516,-151.0,0.00021918,2]
[330464822,1719450656525,-270.264303,0.00021918,2]
[330464823,1719450656535,-412.249098,0.00021918,2]
[330464824,1719450656544,-412.249098,0.00021918,2]
[330464825,1719450656553,-412.249098,0.00021918,2]
[330464826,1719450656563,-412.249098,0.00021918,2]
[330464827,1719450656575,-412.249098,0.00021918,2]
[330464828,1719450656583,-412.249098,0.00021918,2]
[330464829,1719450656592,-412.249098,0.00021918,2]
[330464830,1719450656601,-412.249098,0.00021918,2]
[330464831,1719450656610,-412.249098,0.00021918,2]
[330464832,1719450656620,-412.249098,0.00021918,2]
[330464833,1719450656629,-412.249098,0.00021918,2]
[330464834,1719450656638,-412.249098,0.00021918,2]
[330464835,1719450656648,-412.249098,0.00021918,2]
[330464836,1719450656658,-412.249098,0.00021918,2]
[330464837,1719450656668,-412.249098,0.00021918,2]
[330464838,1719450656678,-412.249098,0.00021918,2]
[330464839,1719450656687,-412.249098,0.00021918,2]
[330464840,1719450656696,-412.249098,0.00021918,2]
[330464841,1719450656706,-412.249107,0.00021918,2]
[330464842,1719450656715,-151.0,0.00021918,2]
[330464843,1719450656725,-195.764052,0.00021918,2]
[330464844,1719450656735,-393.33,0.00021918,2]
[330464845,1719450656743,-150.0,0.00021918,2]
[330464846,1719450656753,-150.0,0.00021918,2]
[330464847,1719450656763,-150.0,0.00021918,2]
[330464848,1719450656772,-150.0,0.00021918,2]
[330464849,1719450656781,-150.0,0.00021918,2]
[330464850,1719450656791,-150.0,0.00021918,2]
[330464851,1719450656800,-150.0,0.00021918,2]
[330464852,1719450656810,-150.0,0.00021918,2]
[330464853,1719450656824,-150.0,0.00021918,2]
[330464854,1719450656832,-150.0,0.00021918,2]
[330464855,1719450656842,-150.0,0.00021918,2]
[330464856,1719450656851,-150.0,0.00021918,2]
[330464857,1719450656865,-150.0,0.00021918,2]
[330464858,1719450656874,-150.0,0.00021918,2]
[330464859,1719450656883,-150.0,0.00021918,2]
[330464860,1719450656893,-150.0,0.00021918,2]
[330464861,1719450656903,-150.0,0.00021918,2]
[330464862,1719450656913,-150.0,0.00021918,2]
[330464863,1719450656923,-150.0,0.00021918,2]
[330464864,1719450656934,-150.0,0.00021918,2]
[330464865,1719450656944,-150.0,0.00021918,2]
[330464866,1719450656958,-150.0,0.00021918,2]
[330464867,1719450656968,-150.0,0.00021918,2]
[330464868,1719450656978,-150.0,0.00021918,2]
[330464869,1719450656988,-150.0,0.00021918,2]
[330464870,1719450656998,-150.0,0.00021918,2]
[330464871,1719450657008,-150.0,0.00021918,2]
[330464872,1719450657017,-150.0,0.00021918,2]
[330464873,1719450657028,-150.0,0.00021918,2]
[330464874,1719450657037,-150.0,0.00021918,2]
[330464875,1719450657048,-267.06365256,0.00021918,2]
[330464876,1719450657057,-1097.2743384,0.00021955,2]
[330464877,1719450657067,-275.1366007,0.00021955,2]
[330464878,1719450657076,-9752.692982,0.00021955,2]
[330464879,1719450657086,-491.4635559,0.00021955,2]
[330464880,1719450657095,-700.0,0.0002197,2]
[330464881,1719450657104,-700.0,0.0002197,2]
[330464882,1719450657114,-700.0,0.0002197,2]
[330464883,1719450657124,-700.0,0.0002197,2]
[330464884,1719450657133,-700.0,0.0002197,2]
[330464885,1719450657143,-1271302.5788846,0.0002197,2]
[330464886,1719450657152,-394.25818926,0.00021999,2]
[330464887,1719450657161,-236.55491356,0.00021999,2]
[330464888,1719450657170,-157.7032757,0.00021999,2]
[330464889,1719450657180,-227484.31977042,0.00021999,2]
[330464890,1719450657190,-8000.0,0.00021999,2]
[330464891,1719450657200,-206.0,0.00021999,2]
[330464892,1719450657210,-206.0,0.00021999,2]
[330464893,1719450657219,-206.0,0.00021999,2]
[330464894,1719450657229,-206.0,0.00021999,2]
[330464895,1719450657238,-206.0,0.00021999,2]
[330464896,1719450657247,-206.0,0.00021999,2]
[330464897,1719450657257,-206.0,0.00021999,2]
[330464898,1719450657267,-206.0,0.00021999,2]
[330464899,1719450657276,-206.0,0.00021999,2]
[330464900,1719450657286,-206.0,0.00021999,2]
[330464901,1719450657295,-206.0,0.00021999,2]
[330464902,1719450657305,-206.0,0.00021999,2]
[330464903,1719450657316,-206.0,0.00021999,2]
[330464904,1719450657325,-206.0,0.00021999,2]
[330464905,1719450657334,-211.0,0.00021999,2]
[330464906,1719450657343,-211.0,0.00021999,2]
[330464907,1719450657352,-211.0,0.00021999,2]
[330464908,1719450657361,-211.0,0.00021999,2]
[330464909,1719450657370,-211.0,0.00021999,2]
[330464910,1719450657379,-211.0,0.00021999,2]
[330464911,1719450657389,-211.0,0.00021999,2]
[330464912,1719450657399,-211.0,0.00021999,2]
[330464913,1719450657409,-211.0,0.00021999,2]
[330464914,1719450657420,-211.0,0.00021999,2]
[330464915,1719450657431,-211.0,0.00021999,2]
[330464916,1719450657442,-218.0,0.00021999,2]
[330464917,1719450657451,-221.0,0.00021999,2]
[330464918,1719450657461,-221.0,0.00021999,2]
[330464919,1719450657470,-221.0,0.00021999,2]
[330464920,1719450657480,-221.0,0.00021999,2]
[330464921,1719450657489,-221.0,0.00021999,2]
[330464922,1719450657499,-221.0,0.00021999,2]
[330464923,1719450657508,-221.0,0.00021999,2]
[330464924,1719450657517,-221.0,0.00021999,2]
[330464925,1719450657526,-151.0,0.00021999,2]
[330464926,1719450657535,-415.13860237,0.00022,5]
[330464927,1719450657544,-1230986.21178171,0.00022,4]
[330464928,1719450658450,-769338.21818818,0.00022,4]
[330464929,1719450659330,-158.27105518,0.00013989,2]
[330464930,1719450659341,-504.75843451,0.00018,2]
[330464931,1719450659351,-504.75843451,0.00018,2]
[330464932,1719450659361,-504.75843451,0.00018,2]
[330464933,1719450659371,-504.75843451,0.00018,2]
[330464934,1719450659380,-504.75843451,0.00018,2]
[330464935,1719450659390,-504.75843451,0.00018,2]
[330464936,1719450659400,-504.75843451,0.00018,2]
[330464937,1719450659409,-504.75843451,0.00018,2]
[330464938,1719450659419,-504.75843451,0.00018,2]
[330464939,1719450659429,-504.75843451,0.00018,2]
[330464940,1719450659438,-101319.92784843,0.00022,4]
[330464941,1719450659464,-504.75843451,0.00018,2]
[330464942,1719450659474,-300.0,0.0001999,2]
[330464943,1719450659483,-945.24156549,0.00022,4]
[330464944,1719450659504,-5661.7126893,0.00022,4]
[330464945,1719450659527,-509.97006902,0.00022,4]
[330464946,1719450660934,-400.57,0.00018,2]
[330464947,1719450660981,-104.18843451,0.00018,2]
[330464948,1719450660990,-194.12943687,0.00018,2]
[330464949,1719450661035,-310.62899764,0.00018,2]
[330464950,1719450661046,-504.75843451,0.00018,2]
[330464951,1719450661055,-504.75843451,0.00018,2]
[330464952,1719450661064,-504.75843451,0.00018,2]
[330464953,1719450661075,-504.75843451,0.00018,2]
[330464954,1719450661084,-504.75843451,0.00018,2]
[330464955,1719450661094,-504.75843451,0.00018,2]
[330464956,1719450661104,-504.75843451,0.00018,2]
[330464957,1719450661114,-504.75843451,0.00018,2]
[330464958,1719450661124,-504.75843451,0.00018,2]
[330464959,1719450661134,-5.75320723,0.00018,2]
[330464966,1719451832721,-300.0,0.00013779,2]
[330464969,1719451832731,-150.0,0.00013779,2]
[330464972,1719451832740,-4594.56,0.0001378,2]
[330464975,1719451832752,-4871.15249665,0.0001378,2]
[330464979,1719451832764,-647.9644712,0.0001378,2]
[330464981,1719451832776,-436.64173545,0.0001378,2]
[330464983,1719451832787,-3137.85816829,0.0001378,2]
[330464986,1719451833043,-6643.9959,0.0001378,2]
[330464989,1719451833054,-312.75876885,0.0001378,2]
[330464991,1719451833065,-1165.65665655,0.0001378,2]
[330464993,1719451833077,-284.1080006,0.0001378,2]
[330464995,1719451833088,-503.15430007,0.0001378,2]
[330464997,1719451833099,-4334.02072546,0.0001378,2]
[330464999,1719451833110,-251.88644517,0.0001378,2]
[330465002,1719451833121,-19680.49626081,0.0001378,2]
[330465004,1719451833130,-2856.8915,0.000138,2]
[330465006,1719451833139,-6781.7837,0.000138,2]
[330465008,1719451833148,-42311.3425,0.000138,2]
[330465010,1719451833158,-10000.0,0.00015,2]
[330465012,1719451833167,-210.0,0.00015114,2]
[330465014,1719451833176,-250.48,0.00016534,2]
[330465016,1719451833185,-150.99,0.00017534,2]
[330465018,1719451833194,-224.97,0.00017534,2]
[330465020,1719451833203,-150.99,0.00017534,2]
[330465022,1719451833212,-500.0,0.00017856,2]
[330465024,1719451833222,-200.0,0.00017856,2]
[330465026,1719451833231,-552.57239721,0.00018,2]
[330465028,1719451833241,-177.17825886,0.00018,2]
[330465030,1719451833250,-177.17825886,0.00018,2]
[330465032,1719451833259,-177.17825886,0.00018,2]
[330465033,1719451833268,-177.17825886,0.00018,2]
[330465034,1719451833277,-1000.0,0.00018372,2]
[330465035,1719451833286,-1500.0,0.00018407,5]
[330465036,1719451833295,-266.71,0.00018644,2]
[330465037,1719451833304,-283.6,0.00018692,2]
[330465038,1719451833313,-250.48,0.00018798,2]
[330465039,1719451833322,-221.19984572,0.00018835,2]
[330465040,1719451833332,-572.61263471,0.00018864,2]
[330465041,1719451833342,-226.97511983,0.00018899,2]
[330465042,1719451833351,-274.129772,0.00018899,2]
[330465044,1719451833360,-474.34627005,0.00018919,2]
[330465045,1719451833369,-474.4066724,0.00018919,2]
[330465047,1719451833378,-155.68762334,0.00018919,2]
[330465049,1719451833387,-164.49,0.00018924,2]
[330465051,1719451833396,-527.78130282,0.00018999,2]
[330465052,1719451833405,-525.88970109,0.00018999,2]
[330465053,1719451833414,-370.20131552,0.00019069,2]
[330465054,1719451833424,-266.1361334,0.00019077,2]
[330465055,1719451833437,-201.65,0.00019151,2]
[330465056,1719451833446,-250.0,0.00019178,2]
[330465057,1719451833455,-201.65,0.00019204,2]
[330465058,1719451833464,-1493.78880258,0.00019229,2]
[330465059,1719451833474,-250.0,0.00019233,2]
[330465060,1719451833483,-201.65,0.00019256,2]
[330465061,1719451833492,-201.65,0.00019309,2]
[330465062,1719451833504,-1039.38958181,0.00019345,2]
[330465063,1719451833514,-589.89840409,0.00019352,2]
[330465064,1719451833525,-789.88172026,0.00019352,2]
[330465065,1719451833534,-201.65,0.00019361,2]
[330465066,1719451833544,-209.96997035,0.00019399,2]
[330465067,1719451833555,-201.65,0.00019414,2]
[330465068,1719451833564,-201.65,0.00019466,2]
[330465069,1719451833573,-201.65,0.00019519,2]
[330465070,1719451833584,-201.65,0.00019571,2]
[330465071,1719451833592,-201.65,0.00019624,2]
[330465072,1719451833601,-1039.38958175,0.00019651,2]
[330465073,1719451833610,-201.65,0.00019676,2]
[330465074,1719451833619,-201.65,0.00019729,2]
[330465075,1719451833628,-201.65,0.00019781,2]
[330465076,1719451833636,-201.65,0.00019834,2]
[330465077,1719451833645,-201.65,0.00019887,2]
[330465078,1719451833655,-1823.87512635,0.00019924,2]
[330465079,1719451833664,-201.65,0.00019939,2]
[330465080,1719451833672,-1039.38958175,0.00019957,2]
[330465081,1719451833682,-292.20084944,0.00019964,2]
[330465082,1719451833692,-155.0,0.00019964,2]
[330465083,1719451833701,-305.13007106,0.0001999,2]
[330465084,1719451833710,-201.65,0.00019992,2]
[330465085,1719451833718,-6807.0,0.00020011,3]
[330465086,1719451833727,-2773.0,0.00020038,3]
[330465087,1719451833736,-201.65,0.00020044,2]
[330465088,1719451833745,-201.65,0.00020097,2]
[330465089,1719451833754,-201.65,0.00020149,2]
[330465090,1719451833763,-1823.87512629,0.00020166,2]